[Event "Goteborg Open 2018"]
[Site "Molnlycke kulturhus, Biblioteksgatan 2, Molnlycke, Sweden"]
[Date "2018.08.17"]
[Round "4.2"]
[White "Gritsak, Orest"]
[Black "Wellevit, Tomas"]
[Result "1-0"]
[TimeControl "15 minutes + 5 seconds per move from move one (Round 1 - 4) / 90 minutes + 30 seconds per move from move one (Round 5 - 8)"]
[WhiteTitle "GM"]
[WhiteFideId "14102188"]
[BlackFideId "1731963"]
[WhiteElo "2464"]
[BlackElo "1905"]

1. Nf3 {[%clk 00:15:02]} {[%emt 00:00:01]} d5 {[%clk 00:15:03]} {[%emt
00:00:03]} 2. d4 {[%clk 00:15:05]} {[%emt 00:00:02]} Nf6 {[%clk 00:15:01]}
{[%emt 00:00:06]} 3. c4 {[%clk 00:15:08]} {[%emt 00:00:02]} e6 {[%clk
00:15:03]} {[%emt 00:00:03]} 4. Nc3 {[%clk 00:15:11]} {[%emt 00:00:03]} Be7
{[%clk 00:15:02]} {[%emt 00:00:05]} 5. Bg5 {[%clk 00:15:13]} {[%emt 00:00:03]}
c6 {[%clk 00:14:51]} {[%emt 00:00:17]} 6. e3 {[%clk 00:15:11]} {[%emt
00:00:06]} Ne4 {[%clk 00:14:53]} {[%emt 00:00:03]} 7. Bxe7 {[%clk 00:14:14]}
{[%emt 00:01:02]} Qxe7 {[%clk 00:14:56]} {[%emt 00:00:02]} 8. Nxe4 {[%clk
00:13:03]} {[%emt 00:01:16]} dxe4 {[%clk 00:15:00]} {[%emt 00:00:01]} 9. Nd2
{[%clk 00:13:07]} {[%emt 00:00:02]} f5 {[%clk 00:14:58]} {[%emt 00:00:07]} 10.
Qh5+ {[%clk 00:13:08]} {[%emt 00:00:03]} g6 {[%clk 00:14:49]} {[%emt 00:00:14]}
11. Qh6 {[%clk 00:13:11]} {[%emt 00:00:02]} Nd7 {[%clk 00:14:26]} {[%emt
00:00:29]} 12. Be2 {[%clk 00:12:48]} {[%emt 00:00:28]} e5 {[%clk 00:14:11]}
{[%emt 00:00:20]} 13. h4 {[%clk 00:12:27]} {[%emt 00:00:26]} exd4 {[%clk
00:14:13]} {[%emt 00:00:03]} 14. exd4 {[%clk 00:12:30]} {[%emt 00:00:02]} Nf6
{[%clk 00:12:32]} {[%emt 00:01:47]} 15. h5 {[%clk 00:12:32]} {[%emt 00:00:03]}
Ng8 {[%clk 00:12:26]} {[%emt 00:00:12]} 16. Qe3 {[%clk 00:12:15]} {[%emt
00:00:22]} g5 {[%clk 00:12:29]} {[%emt 00:00:02]} 17. g4 {[%clk 00:11:18]}
{[%emt 00:01:01]} h6 {[%clk 00:12:21]} {[%emt 00:00:14]} 18. gxf5 {[%clk
00:09:30]} {[%emt 00:01:54]} Bxf5 {[%clk 00:12:24]} {[%emt 00:00:02]} 19. f3
{[%clk 00:08:51]} {[%emt 00:00:43]} exf3 {[%clk 00:12:10]} {[%emt 00:00:19]} 20.
Qxf3 {[%clk 00:08:54]} {[%emt 00:00:02]} Be6 {[%clk 00:11:53]} {[%emt
00:00:22]} 21. d5 {[%clk 00:08:35]} {[%emt 00:00:25]} Bd7 {[%clk 00:11:31]}
{[%emt 00:00:26]} 22. Ne4 {[%clk 00:08:07]} {[%emt 00:00:33]} Qb4+ {[%clk
00:09:55]} {[%emt 00:01:41]} 23. Qc3 {[%clk 00:06:47]} {[%emt 00:01:25]} Qxc3+
{[%clk 00:09:58]} {[%emt 00:00:03]} 24. bxc3 {[%clk 00:06:50]} {[%emt
00:00:02]} O-O-O {[%clk 00:09:53]} {[%emt 00:00:09]} 25. Nd6+ {[%clk 00:06:50]}
{[%emt 00:00:05]} Kc7 {[%clk 00:09:50]} {[%emt 00:00:09]} 26. Nf7 {[%clk
00:06:49]} {[%emt 00:00:05]} Nf6 {[%clk 00:09:48]} {[%emt 00:00:08]} 27. Nxh8
{[%clk 00:05:42]} {[%emt 00:01:13]} Rxh8 {[%clk 00:09:48]} {[%emt 00:00:04]} 28.
O-O {[%clk 00:05:45]} {[%emt 00:00:02]} Ne4 {[%clk 00:09:38]} {[%emt 00:00:15]}
29. Rf7 {[%clk 00:05:47]} {[%emt 00:00:02]} Kc8 {[%clk 00:09:16]} {[%emt
00:00:27]} 30. Bd3 {[%clk 00:04:52]} {[%emt 00:01:00]} Ng3 {[%clk 00:08:30]}
{[%emt 00:00:51]} 31. Re1 {[%clk 00:04:24]} {[%emt 00:00:33]} Nxh5 {[%clk
00:08:19]} {[%emt 00:00:16]} 32. Ree7 {[%clk 00:04:27]} {[%emt 00:00:02]} Rd8
{[%clk 00:08:23]} {[%emt 00:00:01]} 33. Rxd7 {[%emt 00:00:26]} 1-0

[Event "Goteborg Open 2018"]
[Site "Molnlycke kulturhus, Biblioteksgatan 2, Molnlycke, Sweden"]
[Date "2018.08.17"]
[Round "4.3"]
[White "Maddens, Martijn"]
[Black "Vypkhaniuk, Ihor"]
[Result "0-1"]
[TimeControl "15 minutes + 5 seconds per move from move one (Round 1 - 4) / 90 minutes + 30 seconds per move from move one (Round 5 - 8)"]
[WhiteTitle "CM"]
[BlackTitle "FM"]
[WhiteFideId "206962"]
[BlackFideId "14112256"]
[WhiteElo "2141"]
[BlackElo "2357"]

1. e4 {[%clk 00:15:03]} {[%emt 00:00:01]} c5 {[%clk 00:14:54]} {[%emt
00:00:11]} 2. c3 {[%clk 00:15:07]} {[%emt 00:00:01]} d6 {[%clk 00:14:42]}
{[%emt 00:00:18]} 3. d4 {[%clk 00:15:10]} {[%emt 00:00:02]} Nf6 {[%clk
00:14:45]} {[%emt 00:00:01]} 4. Bd3 {[%clk 00:15:14]} g6 {[%clk 00:14:33]}
{[%emt 00:00:17]} 5. Ne2 {[%clk 00:14:03]} {[%emt 00:01:16]} Bg7 {[%clk
00:14:33]} {[%emt 00:00:05]} 6. O-O {[%clk 00:14:05]} {[%emt 00:00:03]} O-O
{[%clk 00:14:30]} {[%emt 00:00:08]} 7. Nd2 {[%clk 00:12:19]} {[%emt 00:01:50]}
cxd4 {[%clk 00:13:40]} {[%emt 00:00:55]} 8. cxd4 {[%clk 00:12:21]} {[%emt
00:00:04]} Nc6 {[%clk 00:13:41]} {[%emt 00:00:04]} 9. Nc4 {[%clk 00:11:51]}
{[%emt 00:00:35]} d5 {[%clk 00:13:33]} {[%emt 00:00:13]} 10. exd5 {[%clk
00:11:24]} {[%emt 00:00:31]} Nxd5 {[%clk 00:13:29]} {[%emt 00:00:10]} 11. Be4
{[%clk 00:10:42]} {[%emt 00:00:46]} Bg4 {[%clk 00:12:58]} {[%emt 00:00:36]} 12.
f3 {[%clk 00:10:13]} {[%emt 00:00:35]} Be6 {[%clk 00:13:02]} {[%emt 00:00:01]}
13. Ne3 {[%clk 00:10:02]} {[%emt 00:00:15]} Qd7 {[%clk 00:12:41]} {[%emt
00:00:27]} 14. Nxd5 {[%clk 00:07:36]} {[%emt 00:02:31]} Bxd5 {[%clk 00:12:44]}
{[%emt 00:00:02]} 15. Bxd5 {[%clk 00:07:23]} {[%emt 00:00:18]} Qxd5 {[%clk
00:12:47]} 16. Be3 {[%clk 00:07:26]} {[%emt 00:00:02]} Rfd8 {[%clk 00:12:42]}
{[%emt 00:00:10]} 17. Re1 {[%clk 00:06:59]} {[%emt 00:00:32]} e6 {[%clk
00:12:38]} {[%emt 00:00:10]} 18. Nc3 {[%clk 00:06:27]} {[%emt 00:00:37]} Qa5
{[%clk 00:12:23]} {[%emt 00:00:19]} 19. Ne2 {[%clk 00:05:09]} {[%emt 00:01:20]}
Rd7 {[%clk 00:11:47]} {[%emt 00:00:44]} 20. Qb3 {[%clk 00:04:42]} {[%emt
00:00:33]} Qb4 {[%clk 00:11:43]} {[%emt 00:00:10]} 21. Red1 {[%clk 00:04:17]}
{[%emt 00:00:29]} a6 {[%clk 00:11:17]} {[%emt 00:00:31]} 22. Rd3 {[%clk
00:03:19]} {[%emt 00:01:04]} h6 {[%clk 00:10:54]} {[%emt 00:00:28]} 23. Rad1
{[%clk 00:03:20]} {[%emt 00:00:03]} Rad8 {[%clk 00:10:50]} {[%emt 00:00:09]} 24.
a3 {[%clk 00:02:42]} {[%emt 00:00:43]} Qxb3 {[%clk 00:10:46]} {[%emt 00:00:08]}
25. Rxb3 {[%clk 00:02:46]} {[%emt 00:00:01]} Na5 {[%clk 00:10:42]} {[%emt
00:00:09]} 26. Rc3 {[%clk 00:02:07]} {[%emt 00:00:44]} e5 {[%clk 00:10:37]}
{[%emt 00:00:11]} 27. Rc5 {[%clk 00:01:54]} {[%emt 00:00:18]} b6 {[%clk
00:10:03]} {[%emt 00:00:39]} 28. Rcc1 {[%clk 00:01:16]} {[%emt 00:00:43]} exd4
{[%clk 00:09:55]} {[%emt 00:00:13]} 29. Bd2 {[%clk 00:00:59]} {[%emt 00:00:22]}
Nb3 {[%clk 00:09:46]} {[%emt 00:00:13]} 30. Rc6 {[%clk 00:01:03]} {[%emt
00:00:02]} a5 {[%clk 00:09:03]} {[%emt 00:00:48]} 31. Rxb6 {[%clk 00:00:54]}
{[%emt 00:00:14]} d3 {[%clk 00:09:06]} {[%emt 00:00:02]} 32. Nc1 {[%clk
00:00:26]} {[%emt 00:00:33]} Nxd2 {[%clk 00:09:08]} {[%emt 00:00:02]} 33. Rxd2
{[%clk 00:00:29]} {[%emt 00:00:01]} Bd4+ {[%clk 00:09:12]} {[%emt 00:00:02]}
0-1

[Event "Goteborg Open 2018"]
[Site "Molnlycke kulturhus, Biblioteksgatan 2, Molnlycke, Sweden"]
[Date "2018.08.17"]
[Round "4.4"]
[White "Lundstrom, Mattias"]
[Black "Bengtsson, Jessica"]
[Result "0-1"]
[TimeControl "15 minutes + 5 seconds per move from move one (Round 1 - 4) / 90 minutes + 30 seconds per move from move one (Round 5 - 8)"]
[WhiteFideId "1703536"]
[BlackFideId "1711083"]
[WhiteElo "2163"]
[BlackElo "1978"]

1. e4 {[%clk 00:15:01]} {[%emt 00:00:03]} c5 {[%clk 00:15:01]} {[%emt
00:00:05]} 2. Nc3 {[%clk 00:15:04]} {[%emt 00:00:02]} Nc6 {[%clk 00:15:04]}
{[%emt 00:00:02]} 3. f4 {[%clk 00:15:08]} {[%emt 00:00:01]} g6 {[%clk
00:15:03]} {[%emt 00:00:07]} 4. Nf3 {[%clk 00:15:11]} {[%emt 00:00:02]} Bg7
{[%clk 00:15:03]} {[%emt 00:00:05]} 5. Bb5 {[%clk 00:15:14]} {[%emt 00:00:02]}
Nd4 {[%clk 00:14:28]} {[%emt 00:00:40]} 6. O-O {[%clk 00:15:16]} {[%emt
00:00:02]} Nxb5 {[%clk 00:13:58]} {[%emt 00:00:36]} 7. Nxb5 {[%clk 00:15:19]}
{[%emt 00:00:02]} d5 {[%clk 00:13:42]} {[%emt 00:00:21]} 8. d3 {[%clk
00:14:42]} {[%emt 00:00:42]} a6 {[%clk 00:12:09]} {[%emt 00:01:39]} 9. Nc3
{[%clk 00:14:43]} {[%emt 00:00:04]} d4 {[%clk 00:11:42]} {[%emt 00:00:32]} 10.
Ne2 {[%clk 00:14:42]} {[%emt 00:00:05]} Nf6 {[%clk 00:11:35]} {[%emt 00:00:12]}
11. c3 {[%clk 00:14:38]} {[%emt 00:00:09]} dxc3 {[%clk 00:11:30]} {[%emt
00:00:10]} 12. bxc3 {[%clk 00:14:39]} {[%emt 00:00:03]} O-O {[%clk 00:11:28]}
{[%emt 00:00:08]} 13. Qc2 {[%clk 00:12:45]} {[%emt 00:01:59]} b5 {[%clk
00:11:06]} {[%emt 00:00:27]} 14. Be3 {[%clk 00:11:20]} {[%emt 00:01:29]} Qc7
{[%clk 00:11:02]} {[%emt 00:00:09]} 15. h3 {[%clk 00:11:22]} {[%emt 00:00:04]}
Bb7 {[%clk 00:10:59]} {[%emt 00:00:08]} 16. e5 {[%clk 00:10:43]} {[%emt
00:00:44]} Nd5 {[%clk 00:10:56]} {[%emt 00:00:08]} 17. Bd2 {[%clk 00:10:38]}
{[%emt 00:00:10]} Rfd8 {[%clk 00:10:40]} {[%emt 00:00:21]} 18. Rac1 {[%clk
00:10:35]} {[%emt 00:00:07]} Qb6 {[%clk 00:10:29]} {[%emt 00:00:17]} 19. Rb1
{[%clk 00:09:19]} {[%emt 00:01:21]} Qc6 {[%clk 00:10:04]} {[%emt 00:00:30]} 20.
Rfc1 {[%clk 00:08:58]} {[%emt 00:00:26]} Rac8 {[%clk 00:10:00]} {[%emt
00:00:10]} 21. Qb2 {[%clk 00:08:16]} {[%emt 00:00:47]} Nb6 {[%clk 00:09:50]}
{[%emt 00:00:15]} 22. c4 {[%clk 00:08:03]} {[%emt 00:00:18]} Rxd3 {[%clk
00:08:40]} {[%emt 00:01:15]} 23. cxb5 {[%clk 00:07:23]} {[%emt 00:00:46]} axb5
{[%clk 00:08:37]} {[%emt 00:00:08]} 24. Ned4 {[%clk 00:07:04]} {[%emt
00:00:23]} Rxd4 {[%clk 00:06:15]} {[%emt 00:02:26]} 0-1

[Event "Goteborg Open 2018"]
[Site "Molnlycke kulturhus, Biblioteksgatan 2, Molnlycke, Sweden"]
[Date "2018.08.17"]
[Round "4.5"]
[White "Bengtsson, Tage"]
[Black "Subramanian, Aditya"]
[Result "1-0"]
[TimeControl "15 minutes + 5 seconds per move from move one (Round 1 - 4) / 90 minutes + 30 seconds per move from move one (Round 5 - 8)"]
[WhiteFideId "1713850"]
[BlackFideId "1718924"]
[WhiteElo "2001"]
[BlackElo "2151"]

1. d4 {[%clk 00:15:03]} Nf6 {[%clk 00:15:04]} {[%emt 00:00:01]} 2. c4 {[%clk
00:15:06]} {[%emt 00:00:02]} e6 {[%clk 00:15:08]} {[%emt 00:00:01]} 3. Nc3
{[%clk 00:15:07]} {[%emt 00:00:04]} Bb4 {[%clk 00:15:11]} {[%emt 00:00:01]} 4.
Nf3 {[%clk 00:15:00]} {[%emt 00:00:13]} O-O {[%clk 00:15:10]} {[%emt 00:00:06]}
5. g3 {[%clk 00:14:58]} {[%emt 00:00:07]} d5 {[%clk 00:15:02]} {[%emt
00:00:13]} 6. Bg2 {[%clk 00:14:52]} {[%emt 00:00:11]} c6 {[%clk 00:13:28]}
{[%emt 00:01:39]} 7. O-O {[%clk 00:14:07]} {[%emt 00:00:50]} b6 {[%clk
00:13:19]} {[%emt 00:00:14]} 8. Ne5 {[%clk 00:12:29]} {[%emt 00:01:43]} Nfd7
{[%clk 00:13:03]} {[%emt 00:00:21]} 9. cxd5 {[%clk 00:11:53]} {[%emt 00:00:41]}
Nxe5 {[%clk 00:13:05]} {[%emt 00:00:03]} 10. dxe5 {[%clk 00:11:41]} {[%emt
00:00:17]} Bxc3 {[%clk 00:12:47]} {[%emt 00:00:24]} 11. dxc6 {[%clk 00:10:46]}
{[%emt 00:01:00]} Qc7 {[%clk 00:11:21]} {[%emt 00:01:31]} 12. bxc3 {[%clk
00:10:49]} {[%emt 00:00:03]} Ba6 {[%clk 00:11:00]} {[%emt 00:00:26]} 13. Ba3
{[%clk 00:10:31]} {[%emt 00:00:22]} Nxc6 {[%clk 00:10:39]} {[%emt 00:00:26]} 14.
Bxf8 {[%clk 00:10:22]} {[%emt 00:00:14]} Rxf8 {[%clk 00:10:43]} {[%emt
00:00:02]} 15. Qa4 {[%clk 00:09:35]} {[%emt 00:00:52]} Bb7 {[%clk 00:10:32]}
{[%emt 00:00:16]} 16. f4 {[%clk 00:09:17]} {[%emt 00:00:22]} Na5 {[%clk
00:09:43]} {[%emt 00:00:55]} 17. Bxb7 {[%clk 00:09:05]} {[%emt 00:00:16]} Qxb7
{[%clk 00:09:47]} {[%emt 00:00:02]} 18. Rfd1 {[%clk 00:08:49]} {[%emt
00:00:21]} Qc7 {[%clk 00:09:49]} {[%emt 00:00:03]} 19. Qd4 {[%clk 00:08:45]}
{[%emt 00:00:08]} Nc4 {[%clk 00:09:08]} {[%emt 00:00:47]} 20. h4 {[%clk
00:06:52]} {[%emt 00:01:58]} h6 {[%clk 00:08:36]} {[%emt 00:00:38]} 21. Rd3
{[%clk 00:06:33]} {[%emt 00:00:23]} Rc8 {[%clk 00:08:28]} {[%emt 00:00:14]} 22.
g4 {[%clk 00:06:11]} {[%emt 00:00:27]} Qe7 {[%clk 00:08:24]} {[%emt 00:00:09]}
23. g5 {[%clk 00:05:54]} {[%emt 00:00:22]} Kh8 {[%clk 00:07:14]} {[%emt
00:01:15]} 24. Kh2 {[%clk 00:05:40]} {[%emt 00:00:18]} Qa3 {[%clk 00:06:57]}
{[%emt 00:00:22]} 25. Rg1 {[%clk 00:05:09]} {[%emt 00:00:36]} Qxa2 {[%clk
00:06:45]} {[%emt 00:00:18]} 26. gxh6 {[%clk 00:04:48]} {[%emt 00:00:25]} g6
{[%clk 00:06:08]} {[%emt 00:00:43]} 27. Qd7 {[%clk 00:04:41]} {[%emt 00:00:12]}
Rf8 {[%clk 00:05:29]} {[%emt 00:00:43]} 28. Rxg6 {[%clk 00:04:33]} {[%emt
00:00:13]} Qxe2+ {[%clk 00:05:32]} {[%emt 00:00:03]} 29. Rg2 {[%clk 00:04:36]}
{[%emt 00:00:02]} Qe4 {[%clk 00:05:03]} {[%emt 00:00:34]} 30. Qd4 {[%clk
00:04:29]} {[%emt 00:00:13]} Qe1 {[%clk 00:04:54]} {[%emt 00:00:14]} 31. Qxc4
{[%clk 00:04:19]} {[%emt 00:00:15]} Qxh4+ {[%clk 00:04:48]} {[%emt 00:00:09]}
32. Rh3 {[%clk 00:04:21]} {[%emt 00:00:04]} 1-0

[Event "Goteborg Open 2018"]
[Site "Molnlycke kulturhus, Biblioteksgatan 2, Molnlycke, Sweden"]
[Date "2018.08.17"]
[Round "4.6"]
[White "Westerlund, Ola"]
[Black "Petersson, Baldur Teodor"]
[Result "0-1"]
[TimeControl "15 minutes + 5 seconds per move from move one (Round 1 - 4) / 90 minutes + 30 seconds per move from move one (Round 5 - 8)"]
[BlackTitle "CM"]
[WhiteFideId "1712101"]
[BlackFideId "2309157"]
[WhiteElo "1923"]
[BlackElo "2138"]

1. d4 {[%clk 00:15:04]} Nf6 {[%clk 00:15:02]} {[%emt 00:00:03]} 2. c4 {[%clk
00:15:07]} {[%emt 00:00:02]} g6 {[%clk 00:15:05]} {[%emt 00:00:02]} 3. Nf3
{[%clk 00:15:11]} {[%emt 00:00:02]} Bg7 {[%clk 00:15:08]} {[%emt 00:00:02]} 4.
g3 {[%clk 00:15:15]} {[%emt 00:00:02]} d6 {[%clk 00:15:08]} {[%emt 00:00:04]} 5.
Bg2 {[%clk 00:15:18]} {[%emt 00:00:01]} O-O {[%clk 00:15:11]} {[%emt 00:00:02]}
6. O-O {[%clk 00:15:22]} {[%emt 00:00:02]} c5 {[%clk 00:15:14]} {[%emt
00:00:01]} 7. d5 {[%clk 00:15:15]} {[%emt 00:00:12]} a6 {[%clk 00:14:42]}
{[%emt 00:00:38]} 8. Nc3 {[%clk 00:15:15]} {[%emt 00:00:04]} Nbd7 {[%clk
00:13:10]} {[%emt 00:01:36]} 9. h3 {[%clk 00:13:56]} {[%emt 00:01:24]} Rb8
{[%clk 00:12:24]} {[%emt 00:00:52]} 10. a4 {[%clk 00:13:47]} {[%emt 00:00:14]}
b6 {[%clk 00:11:58]} {[%emt 00:00:31]} 11. Qc2 {[%clk 00:12:56]} {[%emt
00:00:56]} Qc7 {[%clk 00:11:16]} {[%emt 00:00:46]} 12. e4 {[%clk 00:12:22]}
{[%emt 00:00:39]} e5 {[%clk 00:11:07]} {[%emt 00:00:14]} 13. Ne1 {[%clk
00:11:44]} {[%emt 00:00:44]} Nh5 {[%clk 00:10:47]} {[%emt 00:00:25]} 14. Qe2
{[%clk 00:07:35]} {[%emt 00:04:14]} Bh8 {[%clk 00:10:27]} {[%emt 00:00:25]} 15.
Bh6 {[%clk 00:07:29]} {[%emt 00:00:12]} Ng7 {[%clk 00:10:30]} {[%emt 00:00:01]}
16. f4 {[%clk 00:06:33]} {[%emt 00:01:01]} f5 {[%clk 00:10:32]} {[%emt
00:00:01]} 17. Nd3 {[%clk 00:06:11]} {[%emt 00:00:28]} exf4 {[%clk 00:09:36]}
{[%emt 00:01:02]} 18. Nxf4 {[%clk 00:06:01]} {[%emt 00:00:15]} Ne5 {[%clk
00:09:26]} {[%emt 00:00:15]} 19. Ne6 {[%clk 00:04:38]} {[%emt 00:01:28]} Nxe6
{[%clk 00:08:45]} {[%emt 00:00:45]} 20. dxe6 {[%clk 00:04:42]} {[%emt
00:00:02]} Bxe6 {[%clk 00:08:49]} 21. Bxf8 {[%clk 00:04:28]} {[%emt 00:00:20]}
Bxc4 {[%clk 00:08:32]} {[%emt 00:00:22]} 22. Qd2 {[%clk 00:01:41]} {[%emt
00:02:51]} Rxf8 {[%clk 00:07:38]} {[%emt 00:00:59]} 23. Rfd1 {[%clk 00:01:45]}
{[%emt 00:00:02]} Nd3 {[%clk 00:04:32]} {[%emt 00:03:10]} 24. b3 {[%clk
00:01:05]} {[%emt 00:00:45]} Bd4+ {[%emt 00:00:02]} 25. Kh2 Qg7 {[%clk
00:04:14]} {[%emt 00:00:26]} 26. bxc4 {[%clk 00:00:16]} {[%emt 00:00:59]} Bxc3
{[%clk 00:04:18]} {[%emt 00:00:02]} 27. Qxd3 {[%clk 00:00:20]} Bxa1 {[%clk
00:04:21]} {[%emt 00:00:02]} 28. Qxd6 {[%clk 00:00:22]} {[%emt 00:00:03]} Be5
{[%clk 00:03:26]} {[%emt 00:00:59]} 29. Qe6+ {[%clk 00:00:21]} {[%emt
00:00:06]} Kh8 {[%clk 00:03:20]} {[%emt 00:00:11]} 30. Rd7 {[%clk 00:00:22]}
{[%emt 00:00:05]} Qf6 {[%clk 00:03:01]} {[%emt 00:00:23]} 31. exf5 {[%clk
00:00:17]} {[%emt 00:00:11]} Qxf5 {[%emt 00:01:01]} 32. Qe7 {[%emt 00:00:01]}
Bxg3+ {[%emt 00:00:03]} 0-1

[Event "Goteborg Open 2018"]
[Site "Molnlycke kulturhus, Biblioteksgatan 2, Molnlycke, Sweden"]
[Date "2018.08.17"]
[Round "4.7"]
[White "Eriksson, Kristian"]
[Black "Degerfeldt, Sven"]
[Result "1-0"]
[TimeControl "15 minutes + 5 seconds per move from move one (Round 1 - 4) / 90 minutes + 30 seconds per move from move one (Round 5 - 8)"]
[WhiteFideId "1705172"]
[BlackFideId "1717430"]
[WhiteElo "2097"]
[BlackElo "1954"]

1. e4 {[%clk 00:15:03]} {[%emt 00:00:01]} c5 {[%clk 00:15:04]} {[%emt
00:00:01]} 2. Nc3 {[%clk 00:15:06]} {[%emt 00:00:02]} e6 {[%clk 00:14:59]}
{[%emt 00:00:11]} 3. Nf3 {[%clk 00:15:08]} {[%emt 00:00:02]} Nc6 {[%clk
00:15:00]} {[%emt 00:00:04]} 4. d4 {[%clk 00:15:02]} {[%emt 00:00:11]} cxd4
{[%clk 00:15:03]} {[%emt 00:00:03]} 5. Nxd4 {[%clk 00:15:05]} {[%emt 00:00:02]}
Qc7 {[%clk 00:15:05]} {[%emt 00:00:03]} 6. Be2 {[%clk 00:14:06]} {[%emt
00:01:03]} a6 {[%clk 00:15:04]} {[%emt 00:00:07]} 7. O-O {[%clk 00:14:05]}
{[%emt 00:00:05]} b5 {[%clk 00:14:15]} {[%emt 00:00:54]} 8. a3 {[%clk
00:13:58]} {[%emt 00:00:13]} Bb7 {[%clk 00:14:06]} {[%emt 00:00:13]} 9. Be3
{[%clk 00:13:46]} {[%emt 00:00:16]} Nf6 {[%clk 00:13:52]} {[%emt 00:00:20]} 10.
f4 {[%clk 00:12:50]} {[%emt 00:01:01]} d6 {[%clk 00:13:53]} {[%emt 00:00:04]}
11. Kh1 {[%clk 00:12:23]} {[%emt 00:00:31]} Be7 {[%clk 00:13:21]} {[%emt
00:00:38]} 12. Bd3 {[%clk 00:11:25]} {[%emt 00:01:03]} O-O {[%clk 00:11:58]}
{[%emt 00:01:28]} 13. Qf3 {[%clk 00:11:08]} {[%emt 00:00:21]} Rad8 {[%clk
00:08:56]} {[%emt 00:03:07]} 14. Rae1 {[%clk 00:10:59]} {[%emt 00:00:13]} Nd7
{[%clk 00:08:04]} {[%emt 00:00:58]} 15. Qh3 {[%clk 00:10:03]} {[%emt 00:01:00]}
Nxd4 {[%clk 00:07:49]} {[%emt 00:00:21]} 16. Bxd4 {[%clk 00:10:03]} {[%emt
00:00:05]} e5 {[%clk 00:07:32]} {[%emt 00:00:22]} 17. Be3 {[%clk 00:08:12]}
{[%emt 00:01:55]} Nc5 {[%clk 00:07:20]} {[%emt 00:00:17]} 18. f5 {[%clk
00:06:35]} {[%emt 00:01:43]} f6 {[%clk 00:07:08]} {[%emt 00:00:18]} 19. Qh5
{[%clk 00:05:43]} {[%emt 00:00:56]} Qd7 {[%clk 00:06:20]} {[%emt 00:00:53]} 20.
Rf3 {[%clk 00:05:31]} {[%emt 00:00:16]} Qe8 {[%clk 00:06:23]} {[%emt 00:00:02]}
21. Qh4 {[%clk 00:05:35]} {[%emt 00:00:01]} Nxd3 {[%clk 00:04:25]} {[%emt
00:02:03]} 22. cxd3 {[%clk 00:05:27]} {[%emt 00:00:13]} Rf7 {[%clk 00:04:24]}
{[%emt 00:00:06]} 23. Rh3 {[%clk 00:04:17]} {[%emt 00:01:15]} h6 {[%clk
00:03:57]} {[%emt 00:00:32]} 24. Ne2 {[%clk 00:03:42]} {[%emt 00:00:40]} Bf8
{[%clk 00:03:48]} {[%emt 00:00:15]} 25. Ng3 {[%clk 00:03:32]} {[%emt 00:00:15]}
d5 {[%clk 00:03:28]} {[%emt 00:00:25]} 26. Qg4 {[%clk 00:03:15]} {[%emt
00:00:21]} Kh8 {[%clk 00:03:14]} {[%emt 00:00:19]} 27. Nh5 {[%clk 00:02:53]}
{[%emt 00:00:28]} Qe7 {[%clk 00:02:09]} {[%emt 00:01:11]} 28. Qg6 {[%clk
00:02:47]} {[%emt 00:00:10]} dxe4 {[%clk 00:01:51]} {[%emt 00:00:23]} 29. dxe4
{[%clk 00:02:48]} {[%emt 00:00:04]} Bxe4 {[%clk 00:01:33]} {[%emt 00:00:23]} 30.
Rg3 {[%clk 00:02:51]} {[%emt 00:00:02]} Bxf5 {[%clk 00:01:08]} {[%emt
00:00:30]} 31. Qxf5 {[%clk 00:02:49]} {[%emt 00:00:07]} g5 {[%clk 00:01:07]}
{[%emt 00:00:06]} 32. Rh3 {[%clk 00:02:39]} {[%emt 00:00:16]} Qd7 {[%clk
00:00:39]} {[%emt 00:00:33]} 33. Qg6 {[%clk 00:02:39]} {[%emt 00:00:05]} Bg7
{[%clk 00:00:07]} {[%emt 00:00:37]} 34. Nxg7 {[%clk 00:02:30]} {[%emt
00:00:14]} Rxg7 {[%clk 00:00:07]} {[%emt 00:00:05]} 35. Qxh6+ {[%clk 00:02:31]}
{[%emt 00:00:04]} Kg8 {[%clk 00:00:11]} {[%emt 00:00:01]} 36. Rf1 {[%clk
00:02:17]} {[%emt 00:00:19]} Qd3 {[%clk 00:00:06]} {[%emt 00:00:10]} 37. Qxf6
{[%emt 00:00:12]} 1-0